fUSD/lending_fUSD_20260526
["ID","MTS","AMOUNT","RATE_DAILY","PERIOD"]
[423057936,1779805839000,-354.3880708,0.00028575,2]
[423057937,1779805839000,-154.01551593,0.0002869,2]
[423057939,1779805839000,-1082.69038102,0.00028699,2]
[423057935,1779805839000,-1004.95783203,0.00028575,2]
[423057889,1779805839000,-599.89,0.00025786,2]
[423057929,1779805839000,-665.82,0.00028451,2]
[423057911,1779805839000,-200.31,0.00027741,30]
[423057921,1779805839000,-3876.66,0.00028203,2]
[423057938,1779805839000,-2291.55408407,0.0002869,2]
[423057908,1779805839000,-165.46,0.00027657,30]
[423057901,1779805839000,-3085.7,0.00027397,10]
[423057894,1779805839000,-285.7,0.00026296,2]
[423057902,1779805839000,-5356.59,0.00027397,10]
[423057900,1779805839000,-176.89,0.00027397,2]
[423057897,1779805839000,-269.41,0.00026834,2]
[423057892,1779805839000,-2285.38,0.0002601,2]
[423057893,1779805839000,-500.0,0.00026014,2]
[423057896,1779805839000,-364.51,0.000264,2]
[423057891,1779805839000,-2319.72410669,0.00025835,2]
[423057899,1779805839000,-1500.0,0.00027397,2]
[423057898,1779805839000,-2494.55939288,0.00026931,2]
[423057895,1779805839000,-2405.55389863,0.00026383,2]
[423057913,1779805839000,-6431.14496538,0.00027996,2]
[423057906,1779805839000,-150.0,0.00027521,2]
[423057903,1779805839000,-4778.49,0.00027397,10]
[423057909,1779805839000,-165.49,0.00027665,30]
[423057912,1779805839000,-1000.0,0.00027826,4]
[423057910,1779805839000,-165.52,0.00027676,30]
[423057914,1779805839000,-360.59279742,0.00027996,2]
[423057915,1779805839000,-364.51,0.00028,2]
[423057904,1779805839000,-2586.85809042,0.00027479,2]
[423057905,1779805839000,-364.51,0.000275,2]
[423057949,1779805840000,-295.27,0.00028824,2]
[423057943,1779805840000,-160.6,0.00027641,30]
[423057950,1779805840000,-1916.8150569,0.00028834,2]
[423057945,1779805840000,-350.12,0.00028799,2]
[423057948,1779805840000,-295.27,0.00028824,2]
[423057944,1779805840000,-917.30961898,0.00028699,2]
[423057947,1779805840000,-295.27,0.00028824,2]
[423057958,1779805840000,-893.65195736,0.00028834,2]
[423057951,1779805840000,-17232.59245517,0.00028834,2]
[423057952,1779805840000,-2875.28401037,0.00028834,2]
[423057953,1779805840000,-132.63886087,0.00028834,2]
[423057954,1779805840000,-12955.40241671,0.00028834,2]
[423057955,1779805840000,-1753.64663095,0.00028834,2]
[423057957,1779805840000,-6746.22981931,0.00028834,2]
[423057956,1779805840000,-4803.55679394,0.00028834,2]
[423057946,1779805840000,-10000.0,0.000288,2]
[423057985,1779805846000,-278.25942091,0.00028856,2]
[423057975,1779805846000,-503.0,0.00025082,2]
[423057974,1779805846000,-1945.92640343,0.00024159,2]
[423057976,1779805846000,-503.0,0.00025927,2]
[423057982,1779805846000,-503.0,0.00028462,5]
[423057977,1779805846000,-503.0,0.00026772,3]
[423057981,1779805846000,-165.47,0.00028324,7]
[423057978,1779805846000,-503.0,0.00027617,4]
[423057983,1779805846000,-3982.07,0.00028824,10]
[423057979,1779805846000,-160.6,0.00027634,30]
[423057984,1779805846000,-572691.80155812,0.00028834,2]
[423057986,1779805846000,-107276.3771839,0.00028857,2]
[423057988,1779805846000,-150.0,0.00028897,2]
[423057987,1779805846000,-1413.3780038,0.00028857,2]
[423057991,1779805846000,-165.48,0.00029,2]
[423057989,1779805846000,-250.0,0.00029,2]
[423057990,1779805846000,-612.0,0.00029,2]
[423057980,1779805846000,-165.47,0.00027648,30]
[423058033,1779805847000,-265.55403251,0.00029863,2]
[423058030,1779805847000,-150.0,0.00029863,2]
[423058029,1779805847000,-150.0,0.00029863,2]
[423058031,1779805847000,-150.0,0.00029863,2]
[423058032,1779805847000,-190.08642971,0.00029863,2]
[423058024,1779805847000,-210.0,0.00029576,30]
[423058026,1779805847000,-215.42269777,0.00029672,7]
[423058034,1779805847000,-500.0,0.00029863,2]
[423058027,1779805847000,-215.42269777,0.00029692,2]
[423058037,1779805847000,-446.76515388,0.00029863,2]
[423058035,1779805847000,-500.0,0.00029863,2]
[423058028,1779805847000,-543.34,0.00029815,2]
[423058036,1779805847000,-500.0,0.00029863,2]
[423058046,1779805847000,-500.0,0.00029863,2]
[423058048,1779805847000,-500.0,0.00029863,2]
[423058039,1779805847000,-500.0,0.00029863,2]
[423058025,1779805847000,-360.5927974,0.00029577,2]
[423058038,1779805847000,-500.0,0.00029863,2]
[423058041,1779805847000,-500.0,0.00029863,2]
[423058044,1779805847000,-500.0,0.00029863,2]
[423058045,1779805847000,-500.0,0.00029863,2]
[423058040,1779805847000,-500.0,0.00029863,2]
[423058042,1779805847000,-500.0,0.00029863,2]
[423058043,1779805847000,-500.0,0.00029863,2]
[423058050,1779805847000,-500.0,0.00029863,2]
[423058049,1779805847000,-500.0,0.00029863,2]
[423058056,1779805847000,-500.0,0.00029863,2]
[423058047,1779805847000,-500.0,0.00029863,2]
[423058012,1779805847000,-318.0,0.00029575,30]
[423058018,1779805847000,-151.0,0.00029576,30]
[423058016,1779805847000,-151.0,0.00029576,30]
[423057997,1779805847000,-1000.0,0.00029199,6]
[423058061,1779805847000,-500.0,0.00029863,2]
[423057992,1779805847000,-1000.0,0.00029166,2]
[423057995,1779805847000,-1000.0,0.00029166,2]
[423057993,1779805847000,-1000.0,0.00029166,2]
[423057994,1779805847000,-1000.0,0.00029166,2]
[423057996,1779805847000,-1000.0,0.00029166,2]
[423057999,1779805847000,-5408.57808718,0.00029226,2]
[423058009,1779805847000,-500.0,0.00029575,2]
[423057998,1779805847000,-1022.56687816,0.00029226,2]
[423058001,1779805847000,-1500.0,0.000293,7]
[423058002,1779805847000,-503.0,0.00029307,6]
[423058008,1779805847000,-1000.0,0.00029574,30]
[423058007,1779805847000,-1000.0,0.00029574,2]
[423058000,1779805847000,-40006.46724358,0.0002928,2]
[423058004,1779805847000,-1000.0,0.00029499,51]
[423058003,1779805847000,-1000.0,0.00029371,7]
[423058006,1779805847000,-1000.0,0.00029571,10]
[423058005,1779805847000,-1354.45,0.00029509,7]
[423058021,1779805847000,-166.0,0.00029576,30]
[423058023,1779805847000,-152.0,0.00029576,30]
[423058022,1779805847000,-165.0,0.00029576,30]
[423058019,1779805847000,-157.0,0.00029576,30]
[423058015,1779805847000,-158.0,0.00029575,30]
[423058010,1779805847000,-196.0,0.00029575,30]
[423058013,1779805847000,-236.0,0.00029575,30]
[423058017,1779805847000,-159.46500359,0.00029576,30]
[423058020,1779805847000,-215.0,0.00029576,30]
[423058054,1779805847000,-500.0,0.00029863,2]
[423058114,1779805847000,-5000.0,0.00030786,2]
[423058053,1779805847000,-500.0,0.00029863,2]
[423058096,1779805847000,-503.0,0.00030152,7]
[423058086,1779805847000,-151.42334747,0.00029999,2]
[423058098,1779805847000,-253.0,0.00030239,5]
[423058093,1779805847000,-200.26828773,0.00030137,40]
[423058094,1779805847000,-500.0,0.00030146,120]
[423058088,1779805847000,-500.0,0.00029999,2]
[423058092,1779805847000,-176.89,0.00030137,2]
[423058091,1779805847000,-500.0,0.00029999,2]
[423058089,1779805847000,-500.0,0.00029999,2]
[423058090,1779805847000,-500.0,0.00029999,2]
[423058095,1779805847000,-500.0,0.00030146,30]
[423058110,1779805847000,-166.0,0.00030576,30]
[423058100,1779805847000,-150.0,0.00030341,2]
[423058101,1779805847000,-6431.14496534,0.00030456,2]
[423058104,1779805847000,-236.0,0.00030575,30]
[423058105,1779805847000,-158.0,0.00030575,30]
[423058106,1779805847000,-151.0,0.00030576,30]
[423058108,1779805847000,-160.0,0.00030576,30]
[423058103,1779805847000,-318.0,0.00030575,30]
[423058102,1779805847000,-196.0,0.00030575,30]
[423058107,1779805847000,-151.0,0.00030576,30]
[423058109,1779805847000,-215.0,0.00030576,30]
[423058112,1779805847000,-152.0,0.00030576,30]
[423058111,1779805847000,-165.0,0.00030576,30]
[423058113,1779805847000,-210.0,0.00030576,30]
[423058115,1779805847000,-500.0,0.00030885,120]
[423058060,1779805847000,-500.0,0.00029863,2]
[423058097,1779805847000,-1439.799998,0.000302,2]
[423058087,1779805847000,-500.0,0.00029999,2]
[423058099,1779805847000,-285.7,0.00030239,2]
[423058079,1779805847000,-500.0,0.00029863,2]
[423058084,1779805847000,-313.76785014,0.00029999,2]
[423058055,1779805847000,-500.0,0.00029863,2]
[423058052,1779805847000,-597.08261156,0.00029863,2]
[423058059,1779805847000,-500.0,0.00029863,2]
[423058058,1779805847000,-500.0,0.00029863,2]
[423058057,1779805847000,-500.0,0.00029863,2]
[423058062,1779805847000,-500.0,0.00029863,2]
[423058064,1779805847000,-500.0,0.00029863,2]
[423058069,1779805847000,-500.0,0.00029863,2]
[423058071,1779805847000,-500.0,0.00029863,2]
[423058065,1779805847000,-500.0,0.00029863,2]
[423058072,1779805847000,-500.0,0.00029863,2]
[423058066,1779805847000,-500.0,0.00029863,2]
[423058067,1779805847000,-500.0,0.00029863,2]
[423058051,1779805847000,-500.0,0.00029863,2]
[423058068,1779805847000,-500.0,0.00029863,2]
[423058063,1779805847000,-500.0,0.00029863,2]
[423058082,1779805847000,-302.50770217,0.00029999,2]
[423058077,1779805847000,-586.41054497,0.00029863,2]
[423058080,1779805847000,-284.7991022,0.00029863,2]
[423058074,1779805847000,-500.0,0.00029863,2]
[423058081,1779805847000,-500.0,0.00029999,2]
[423058083,1779805847000,-500.0,0.00029999,2]
[423058078,1779805847000,-500.0,0.00029863,2]
[423058085,1779805847000,-435.97466436,0.00029999,2]
[423058075,1779805847000,-500.0,0.00029863,2]
[423058073,1779805847000,-500.0,0.00029863,2]
[423058070,1779805847000,-500.0,0.00029863,2]
[423058076,1779805847000,-500.0,0.00029863,2]
[423058156,1779805848000,-693.39197629,0.00031602,2]
[423058154,1779805848000,-630.14180393,0.00031579,30]
[423058153,1779805848000,-210.0,0.00031576,30]
[423058159,1779805848000,-745.65223615,0.00031712,2]
[423058155,1779805848000,-364.51,0.000316,2]
[423058152,1779805848000,-152.0,0.00031576,30]
[423058151,1779805848000,-165.0,0.00031576,30]
[423058150,1779805848000,-166.0,0.00031576,30]
[423058148,1779805848000,-151.0,0.00031576,30]
[423058149,1779805848000,-215.0,0.00031576,30]
[423058158,1779805848000,-6431.14496534,0.00031686,2]
[423058157,1779805848000,-719.04747942,0.00031657,2]
[423058160,1779805848000,-773.24136889,0.00031767,2]
[423058163,1779805848000,-831.51979762,0.00031877,2]
[423058161,1779805848000,-801.85129954,0.00031822,2]
[423058171,1779805848000,-160.71850079,0.00032,120]
[423058172,1779805848000,-207.07264915,0.00032,120]
[423058165,1779805848000,-1280.88388877,0.0003193,2]
[423058167,1779805848000,-862.28603014,0.00031932,2]
[423058168,1779805848000,-894.19061325,0.00031987,2]
[423058170,1779805848000,-188.30999285,0.00032,120]
[423058164,1779805848000,-200.0,0.0003193,2]
[423058166,1779805848000,-181.08010149,0.0003193,2]
[423058169,1779805848000,-400.0,0.00032,120]
[423058173,1779805848000,-166.24505427,0.00032,120]
[423058175,1779805848000,-961.58486558,0.00032097,2]
[423058146,1779805848000,-158.0,0.00031575,30]
[423058162,1779805848000,-150.0,0.00031858,2]
[423058143,1779805848000,-196.0,0.00031575,30]
[423058180,1779805848000,-150.0,0.00032301,7]
[423058139,1779805848000,-1264.5,0.000315,2]
[423058120,1779805848000,-1014.26008399,0.00030997,2]
[423058122,1779805848000,-1100.38972464,0.00031112,15]
[423058121,1779805848000,-12835.055971,0.00031073,2]
[423058117,1779805848000,-180.96308781,0.0003093,2]
[423058119,1779805848000,-503.0,0.00030996,8]
[423058118,1779805848000,-1354.45,0.00030935,7]
[423058116,1779805848000,-500.0,0.00030885,30]
[423058124,1779805848000,-158.0,0.00031222,120]
[423058134,1779805848000,-599.60298507,0.00031382,2]
[423058135,1779805848000,-578.20924308,0.00031382,2]
[423058123,1779805848000,-360.5927974,0.00031159,2]
[423058125,1779805848000,-162.68,0.00031251,2]
[423058128,1779805848000,-200.0,0.00031382,2]
[423058126,1779805848000,-269.41,0.00031272,120]
[423058127,1779805848000,-163.92,0.0003129,120]
[423058133,1779805848000,-623.58710447,0.00031382,2]
[423058129,1779805848000,-1235.18214925,0.00031382,2]
[423058131,1779805848000,-174.61919141,0.00031382,2]
[423058132,1779805848000,-958.8056709,0.00031382,2]
[423058130,1779805848000,-1000.0,0.00031382,2]
[423058144,1779805848000,-318.0,0.00031575,30]
[423058141,1779805848000,-500.0,0.00031524,30]
[423058145,1779805848000,-236.0,0.00031575,30]
[423058142,1779805848000,-668.65185756,0.00031547,2]
[423058137,1779805848000,-621.78829552,0.00031437,2]
[423058147,1779805848000,-151.0,0.00031576,30]
[423058138,1779805848000,-644.79446245,0.00031492,2]
[423058140,1779805848000,-500.0,0.00031524,120]
[423058185,1779805848000,-150.67938172,0.00032301,7]
[423058136,1779805848000,-200.0,0.00031382,2]
[423058174,1779805848000,-927.27566594,0.00032042,2]
[423058211,1779805848000,-3636.0,0.00032953,2]
[423058213,1779805848000,-400.0,0.00033,120]
[423058214,1779805848000,-188.30999285,0.00033,120]
[423058215,1779805848000,-160.71850079,0.00033,120]
[423058217,1779805848000,-166.24505427,0.00033,120]
[423058222,1779805848000,-1377.42282658,0.00033026,2]
[423058216,1779805848000,-207.07264915,0.00033,120]
[423058237,1779805848000,-166.0,0.00033576,30]
[423058220,1779805848000,-152.0,0.00033015,3]
[423058219,1779805848000,-499.0,0.00033015,5]
[423058212,1779805848000,-6062.0,0.00032953,2]
[423058218,1779805848000,-2000.0,0.00033,7]
[423058221,1779805848000,-200.0,0.00033026,2]
[423058205,1779805848000,-210.0,0.00032576,30]
[423058224,1779805848000,-500.0,0.00033043,120]
[423058234,1779805848000,-151.0,0.00033576,30]
[423058235,1779805848000,-151.0,0.00033576,30]
[423058229,1779805848000,-1428.38747117,0.00033574,2]
[423058225,1779805848000,-200.0,0.00033105,10]
[423058231,1779805848000,-196.0,0.00033575,30]
[423058228,1779805848000,-200.0,0.00033574,2]
[423058230,1779805848000,-201.93286098,0.00033574,2]
[423058226,1779805848000,-516.14,0.00033183,2]
[423058227,1779805848000,-150.0,0.00033451,2]
[423058232,1779805848000,-318.0,0.00033575,30]
[423058233,1779805848000,-236.0,0.00033575,30]
[423058236,1779805848000,-215.0,0.00033576,30]
[423058238,1779805848000,-165.0,0.00033576,30]
[423058223,1779805848000,-194.72792766,0.00033026,2]
[423058206,1779805848000,-2418.257,0.00032657,2]
[423058176,1779805848000,-2794.129,0.00032104,31]
[423058198,1779805848000,-158.0,0.00032575,30]
[423058177,1779805848000,-165.289,0.00032104,31]
[423058182,1779805848000,-150.0,0.00032301,7]
[423058179,1779805848000,-285.7,0.0003221,5]
[423058181,1779805848000,-150.0,0.00032301,7]
[423058183,1779805848000,-150.0,0.00032301,7]
[423058184,1779805848000,-150.0,0.00032301,7]
[423058178,1779805848000,-997.16350561,0.00032152,2]
[423058204,1779805848000,-152.0,0.00032576,30]
[423058186,1779805848000,-150.0,0.00032301,7]
[423058188,1779805848000,-150.0,0.00032301,7]
[423058197,1779805848000,-236.0,0.00032575,30]
[423058189,1779805848000,-1354.45,0.00032362,30]
[423058194,1779805848000,-530.0,0.00032556,30]
[423058190,1779805848000,-249.0,0.00032428,5]
[423058187,1779805848000,-150.0,0.00032301,7]
[423058196,1779805848000,-318.0,0.00032575,30]
[423058193,1779805848000,-187.78006524,0.00032478,2]
[423058203,1779805848000,-165.0,0.00032576,30]
[423058201,1779805848000,-215.0,0.00032576,30]
[423058202,1779805848000,-166.0,0.00032576,30]
[423058210,1779805848000,-1225.0,0.00032953,2]
[423058209,1779805848000,-6431.14496534,0.00032916,2]
[423058200,1779805848000,-151.0,0.00032576,30]
[423058208,1779805848000,-176.89,0.00032877,2]
[423058199,1779805848000,-151.0,0.00032576,30]
[423058191,1779805848000,-200.0,0.00032478,2]
[423058192,1779805848000,-1328.27659266,0.00032478,2]
[423058195,1779805848000,-196.0,0.00032575,30]
[423058207,1779805848000,-360.5927974,0.0003274,2]
[423058276,1779805849000,-5001.499999,0.00035,30]
[423058283,1779805849000,-150.0,0.0003524,120]
[423058280,1779805849000,-200.0,0.00035218,2]
[423058284,1779805849000,-294.0,0.0003524,120]
[423058277,1779805849000,-150.0,0.00035124,2]
[423058270,1779805849000,-359.00709126,0.0003467,2]
[423058278,1779805849000,-302.78,0.0003513,30]
[423058285,1779805849000,-369.0,0.0003524,120]
[423058275,1779805849000,-166.24505427,0.00035,120]
[423058274,1779805849000,-164.0,0.00035,120]
[423058273,1779805849000,-160.71850079,0.00035,120]
[423058279,1779805849000,-1354.45,0.00035215,30]
[423058282,1779805849000,-500.0,0.0003524,120]
[423058300,1779805849000,-865.53028801,0.0003526,2]
[423058286,1779805849000,-300.0,0.0003526,2]
[423058288,1779805849000,-528.42557,0.0003526,2]
[423058289,1779805849000,-1068.30020172,0.0003526,2]
[423058290,1779805849000,-894.55274135,0.0003526,2]
[423058291,1779805849000,-726.99445071,0.0003526,2]
[423058297,1779805849000,-1263.82495173,0.0003526,2]
[423058294,1779805849000,-300.96252262,0.0003526,2]
[423058292,1779805849000,-302.1844563,0.0003526,2]
[423058298,1779805849000,-527.56699294,0.0003526,2]
[423058293,1779805849000,-300.0,0.0003526,2]
[423058295,1779805849000,-300.0,0.0003526,2]
[423058287,1779805849000,-300.0,0.0003526,2]
[423058296,1779805849000,-300.0,0.0003526,2]
[423058266,1779805849000,-152.0,0.00034576,30]
[423058281,1779805849000,-1592.87721992,0.00035218,2]
[423058269,1779805849000,-1536.04360648,0.0003467,2]
[423058255,1779805849000,-250.0,0.00034247,4]
[423058268,1779805849000,-200.0,0.0003467,2]
[423058310,1779805849000,-300.0,0.0003526,2]
[423058240,1779805849000,-210.0,0.00033576,30]
[423058241,1779805849000,-1354.45,0.00033789,30]
[423058242,1779805849000,-400.0,0.000339,120]
[423058244,1779805849000,-160.71850079,0.000339,120]
[423058247,1779805849000,-315.0,0.000339,2]
[423058245,1779805849000,-207.07264915,0.000339,120]
[423058243,1779805849000,-188.30999285,0.000339,120]
[423058246,1779805849000,-166.24505427,0.000339,120]
[423058249,1779805849000,-599.60298507,0.00034121,2]
[423058248,1779805849000,-646.65982734,0.00034121,2]
[423058260,1779805849000,-236.0,0.00034575,30]
[423058252,1779805849000,-209.40437684,0.00034122,2]
[423058272,1779805849000,-188.30999285,0.00035,120]
[423058259,1779805849000,-318.0,0.00034575,30]
[423058251,1779805849000,-1481.2378076,0.00034122,2]
[423058256,1779805849000,-2000.0,0.00034247,30]
[423058253,1779805849000,-6431.14496534,0.00034146,2]
[423058258,1779805849000,-196.0,0.00034575,30]
[423058254,1779805849000,-285.7,0.00034182,7]
[423058257,1779805849000,-360.5927974,0.00034322,2]
[423058261,1779805849000,-151.0,0.00034576,30]
[423058263,1779805849000,-215.0,0.00034576,30]
[423058265,1779805849000,-165.0,0.00034576,30]
[423058264,1779805849000,-166.0,0.00034576,30]
[423058267,1779805849000,-210.0,0.00034576,30]
[423058262,1779805849000,-151.0,0.00034576,30]
[423058271,1779805849000,-400.0,0.00035,120]
[423058250,1779805849000,-200.0,0.00034122,2]
[423058299,1779805849000,-344.4170137,0.0003526,2]
[423058239,1779805849000,-152.0,0.00033576,30]
[423058302,1779805849000,-1148.70755237,0.0003526,2]
[423058337,1779805849000,-1148.70755237,0.0003526,2]
[423058339,1779805849000,-594.73329586,0.0003526,2]
[423058341,1779805849000,-464.43646992,0.0003526,2]
[423058340,1779805849000,-300.0,0.0003526,2]
[423058338,1779805849000,-309.98994128,0.0003526,2]
[423058348,1779805849000,-484.71261076,0.0003526,2]
[423058350,1779805849000,-331.590384,0.0003526,2]
[423058349,1779805849000,-310.24516055,0.0003526,2]
[423058343,1779805849000,-578.19877315,0.0003526,2]
[423058347,1779805849000,-300.0,0.0003526,2]
[423058345,1779805849000,-300.0,0.0003526,2]
[423058344,1779805849000,-452.48121198,0.0003526,2]
[423058346,1779805849000,-300.0,0.0003526,2]
[423058352,1779805849000,-1096.16608281,0.0003526,2]
[423058351,1779805849000,-300.0,0.0003526,2]
[423058362,1779805849000,-726.99445071,0.0003526,2]
[423058353,1779805849000,-300.0,0.0003526,2]
[423058363,1779805849000,-302.1844563,0.0003526,2]
[423058354,1779805849000,-416.05170479,0.0003526,2]
[423058355,1779805849000,-493.32888988,0.0003526,2]
[423058357,1779805849000,-300.0,0.0003526,2]
[423058358,1779805849000,-300.0,0.0003526,2]
[423058356,1779805849000,-605.24124213,0.0003526,2]
[423058361,1779805849000,-894.55274135,0.0003526,2]
[423058360,1779805849000,-1068.30020172,0.0003526,2]
[423058359,1779805849000,-528.42557,0.0003526,2]
[423058364,1779805849000,-300.0,0.0003526,2]
[423058365,1779805849000,-300.96252262,0.0003526,2]
[423058301,1779805849000,-950.21744792,0.0003526,2]
[423058331,1779805849000,-300.0,0.0003526,2]
[423058329,1779805849000,-300.96252262,0.0003526,2]
[423058342,1779805849000,-300.0,0.0003526,2]
[423058334,1779805849000,-527.56699294,0.0003526,2]
[423058330,1779805849000,-300.0,0.0003526,2]
[423058305,1779805849000,-300.0,0.0003526,2]
[423058308,1779805849000,-578.19877315,0.0003526,2]
[423058304,1779805849000,-594.73329586,0.0003526,2]
[423058307,1779805849000,-300.0,0.0003526,2]
[423058306,1779805849000,-464.43646992,0.0003526,2]
[423058309,1779805849000,-452.48121198,0.0003526,2]
[423058311,1779805849000,-300.0,0.0003526,2]
[423058314,1779805849000,-310.24516055,0.0003526,2]
[423058313,1779805849000,-484.71261076,0.0003526,2]
[423058312,1779805849000,-300.0,0.0003526,2]
[423058322,1779805849000,-300.0,0.0003526,2]
[423058323,1779805849000,-528.42557,0.0003526,2]
[423058315,1779805849000,-300.0,0.0003526,2]
[423058316,1779805849000,-300.0,0.0003526,2]
[423058303,1779805849000,-309.98994128,0.0003526,2]
[423058319,1779805849000,-300.0,0.0003526,2]
[423058318,1779805849000,-300.0,0.0003526,2]
[423058332,1779805849000,-1263.82495173,0.0003526,2]
[423058328,1779805849000,-300.0,0.0003526,2]
[423058327,1779805849000,-302.1844563,0.0003526,2]
[423058324,1779805849000,-1068.30020172,0.0003526,2]
[423058326,1779805849000,-726.99445071,0.0003526,2]
[423058333,1779805849000,-344.4170137,0.0003526,2]
[423058336,1779805849000,-950.21744792,0.0003526,2]
[423058325,1779805849000,-894.55274135,0.0003526,2]
[423058321,1779805849000,-605.24124213,0.0003526,2]
[423058320,1779805849000,-493.32888988,0.0003526,2]
[423058317,1779805849000,-1096.16608281,0.0003526,2]
[423058335,1779805849000,-865.53028801,0.0003526,2]
[423058406,1779805850000,-950.21744792,0.0003526,2]
[423058408,1779805850000,-309.98994128,0.0003526,2]
[423058404,1779805850000,-527.56699294,0.0003526,2]
[423058405,1779805850000,-865.53028801,0.0003526,2]
[423058395,1779805850000,-894.55274135,0.0003526,2]
[423058413,1779805850000,-452.48121198,0.0003526,2]
[423058403,1779805850000,-344.4170137,0.0003526,2]
[423058411,1779805850000,-464.43646992,0.0003526,2]
[423058412,1779805850000,-578.19877315,0.0003526,2]
[423058400,1779805850000,-312.95158148,0.0003526,2]
[423058401,1779805850000,-300.0,0.0003526,2]
[423058409,1779805850000,-594.73329586,0.0003526,2]
[423058402,1779805850000,-1263.82495173,0.0003526,2]
[423058407,1779805850000,-1148.70755237,0.0003526,2]
[423058415,1779805850000,-300.0,0.0003526,2]
[423058414,1779805850000,-545.07983248,0.0003526,2]
[423058418,1779805850000,-310.24516055,0.0003526,2]
[423058416,1779805850000,-300.0,0.0003526,2]
[423058417,1779805850000,-484.71261076,0.0003526,2]
[423058425,1779805850000,-528.42557,0.0003526,2]
[423058421,1779805850000,-300.0,0.0003526,2]
[423058423,1779805850000,-605.24124213,0.0003526,2]
[423058419,1779805850000,-300.0,0.0003526,2]
[423058420,1779805850000,-1096.16608281,0.0003526,2]
[423058424,1779805850000,-300.0,0.0003526,2]
[423058426,1779805850000,-1068.30020172,0.0003526,2]
[423058422,1779805850000,-493.32888988,0.0003526,2]
[423058393,1779805850000,-528.42557,0.0003526,2]
[423058410,1779805850000,-300.0,0.0003526,2]
[423058397,1779805850000,-302.1844563,0.0003526,2]
[423058366,1779805850000,-300.0,0.0003526,2]
[423058399,1779805850000,-300.96252262,0.0003526,2]
[423058428,1779805850000,-726.99445071,0.0003526,2]
[423058368,1779805850000,-1263.82495173,0.0003526,2]
[423058367,1779805850000,-300.0,0.0003526,2]
[423058375,1779805850000,-594.73329586,0.0003526,2]
[423058369,1779805850000,-344.4170137,0.0003526,2]
[423058370,1779805850000,-527.56699294,0.0003526,2]
[423058373,1779805850000,-1148.70755237,0.0003526,2]
[423058372,1779805850000,-950.21744792,0.0003526,2]
[423058371,1779805850000,-865.53028801,0.0003526,2]
[423058374,1779805850000,-309.98994128,0.0003526,2]
[423058377,1779805850000,-464.43646992,0.0003526,2]
[423058376,1779805850000,-300.0,0.0003526,2]
[423058378,1779805850000,-300.0,0.0003526,2]
[423058379,1779805850000,-578.19877315,0.0003526,2]
[423058381,1779805850000,-300.0,0.0003526,2]
[423058385,1779805850000,-310.24516055,0.0003526,2]
[423058382,1779805850000,-300.0,0.0003526,2]
[423058383,1779805850000,-300.0,0.0003526,2]
[423058386,1779805850000,-300.0,0.0003526,2]
[423058380,1779805850000,-452.48121198,0.0003526,2]
[423058384,1779805850000,-484.71261076,0.0003526,2]
[423058387,1779805850000,-1096.16608281,0.0003526,2]
[423058389,1779805850000,-493.32888988,0.0003526,2]
[423058390,1779805850000,-605.24124213,0.0003526,2]
[423058391,1779805850000,-300.0,0.0003526,2]
[423058396,1779805850000,-726.99445071,0.0003526,2]
[423058398,1779805850000,-300.0,0.0003526,2]
[423058388,1779805850000,-300.0,0.0003526,2]
[423058394,1779805850000,-1068.30020172,0.0003526,2]
[423058392,1779805850000,-318.67627921,0.0003526,2]